bitfinex-derivatives/quotes_BTCF0:USTF0_20230901
["timestamp","ask_amount","ask_price","bid_price","bid_amount"]
[1693533219942,0.00057686,26006.0,26005.0,0.60160228]
[1693533220146,0.00057686,26006.0,26005.0,0.60260228]
[1693533220747,0.00343686,26006.0,26005.0,0.60260228]
[1693533221145,0.00343686,26006.0,26005.0,0.02425201]
[1693533221338,0.05998524,26006.0,26005.0,0.001]
[1693533222342,0.05468907,26007.0,26005.0,0.02425201]
[1693533222650,0.35548405,26008.0,26005.0,0.05568907]
[1693533222851,0.05468907,26007.0,26005.0,0.001]
[1693533223053,0.37548405,26008.0,26005.0,0.001]
[1693533223351,0.27966949,26007.0,26005.0,0.001]
[1693533223647,0.19168405,26007.0,26005.0,0.001]
[1693533223847,0.38562381,26008.0,26005.0,0.001]
[1693533224049,0.08798544,26007.0,26005.0,0.001]
[1693533224250,0.19168405,26007.0,26005.0,0.001]
[1693533224441,0.08798544,26006.0,26005.0,0.001]
[1693533224641,0.27966949,26006.0,26005.0,0.001]
[1693533224842,0.29966949,26006.0,26005.0,0.001]
[1693533228349,0.29966949,26006.0,26005.0,0.003]
[1693533229848,0.21168405,26006.0,26005.0,0.05954838]
[1693533230154,0.24498042,26006.0,26005.0,0.003]
[1693533230345,0.24498042,26006.0,26005.0,0.005]
[1693533231056,0.29966949,26006.0,26005.0,0.005]
[1693533231757,0.10798544,26006.0,26005.0,0.005]
[1693533237460,0.08798544,26006.0,26005.0,0.005]
[1693533237658,0.10798544,26006.0,26005.0,0.005]
[1693533239849,0.29965056,26006.0,26005.0,0.005]
[1693533240152,0.29965036,26006.0,26005.0,0.005]
[1693533240357,0.27965036,26006.0,26005.0,0.005]
[1693533252267,0.27966209,26006.0,26005.0,0.005]
[1693533257374,0.08798544,26006.0,26005.0,0.005]
[1693533260277,0.03329637,26006.0,26005.0,0.005]
[1693533260670,0.08798544,26006.0,26005.0,0.005]
[1693533260875,0.03329637,26006.0,26005.0,0.005]
[1693533261074,0.08798544,26006.0,26005.0,0.005]
[1693533261674,0.03329637,26006.0,26005.0,0.005]
[1693533261875,0.27975423,26006.0,26005.0,0.005]
[1693533263575,0.08798544,26006.0,26005.0,0.005]
[1693533265380,0.03329637,26006.0,26005.0,0.005]
[1693533266378,0.03329637,26006.0,26005.0,0.1674]
[1693533268387,0.03329637,26006.0,26005.0,0.22208907]
[1693533268578,0.42395175,26008.0,26005.0,0.27863745]
[1693533268875,0.44395175,26008.0,26005.0,0.27863745]
[1693533269174,0.08798544,26007.0,26005.0,0.27863745]
[1693533269369,0.05468907,26007.0,26005.0,0.1674]
[1693533269571,0.05468907,26007.0,26005.0,0.1644]
[1693533269870,0.05468907,26007.0,26005.0,0.1674]
[1693533270071,0.28470106,26007.0,26005.0,0.1654]
[1693533270272,0.03329637,26006.0,26005.0,0.1674]
[1693533270670,0.03329637,26006.0,26005.0,0.1654]
[1693533270877,0.03329637,26006.0,26005.0,0.1674]
[1693533272385,0.03329637,26006.0,26005.0,0.1644]
[1693533272683,0.08798544,26006.0,26005.0,0.1644]
[1693533272876,0.03329637,26006.0,26005.0,0.1644]
[1693533273078,0.08798544,26006.0,26005.0,0.1674]
[1693533273272,0.03329637,26006.0,26005.0,0.1674]
[1693533275784,0.08798544,26006.0,26005.0,0.1674]
[1693533276888,0.03329637,26006.0,26005.0,0.1674]
[1693533277679,0.08798544,26006.0,26005.0,0.1674]
[1693533278386,0.03329637,26006.0,26005.0,0.1674]
[1693533281791,0.08798544,26006.0,26005.0,0.1674]
[1693533290495,0.03329637,26006.0,26005.0,0.1674]
[1693533291198,0.08798544,26006.0,26005.0,0.1674]
[1693533292499,0.26330836,26006.0,26005.0,0.1674]
[1693533292687,0.31799743,26006.0,26005.0,0.1674]
[1693533294508,0.26330836,26006.0,26005.0,0.1674]
[1693533294709,0.31799743,26006.0,26005.0,0.1674]
[1693533299312,0.08798544,26006.0,26005.0,0.1674]
[1693533300411,0.08798544,26006.0,26005.0,0.16618877]
[1693533306816,0.03329637,26006.0,26005.0,0.16618877]
[1693533307516,0.08798544,26006.0,26005.0,0.16618877]
[1693533308417,0.03329637,26006.0,26005.0,0.16618877]
[1693533308617,0.08798544,26006.0,26005.0,0.16618877]
[1693533311618,0.31799743,26006.0,26005.0,0.16618877]
[1693533312314,0.23001199,26007.0,26005.0,0.16618877]
[1693533312521,0.26330836,26007.0,26005.0,0.16618877]
[1693533312724,0.28470106,26007.0,26005.0,0.16618877]
[1693533313222,0.03329637,26006.0,26005.0,0.16618877]
[1693533313419,0.03329637,26006.0,26005.0,0.16318877]
[1693533313613,0.03329637,26006.0,26005.0,0.16418877]
[1693533313910,0.03329637,26006.0,26005.0,0.16618877]
[1693533314221,0.03329637,26006.0,26005.0,0.16418877]
[1693533314423,0.08798544,26006.0,26005.0,0.16618877]
[1693533314923,0.03329637,26006.0,26005.0,0.16618877]
[1693533317318,0.08798544,26006.0,26005.0,0.16618877]
[1693533321129,0.03329637,26006.0,26005.0,0.16618877]
[1693533321331,0.08798544,26006.0,26005.0,0.16618877]
[1693533321728,0.03329637,26006.0,26005.0,0.16618877]
[1693533322633,0.26330836,26006.0,26005.0,0.16618877]
[1693533322831,0.26330836,26006.0,26005.0,0.22087784]
[1693533323027,0.26330836,26006.0,26005.0,0.16618877]
[1693533323329,0.31799743,26006.0,26005.0,0.16618877]
[1693533324829,0.08798544,26006.0,26005.0,0.16618877]
[1693533328232,0.03329637,26006.0,26005.0,0.16618877]
[1693533328433,0.08798544,26006.0,26005.0,0.16618877]
[1693533331133,0.03329637,26006.0,26005.0,0.16618877]
[1693533331535,0.08798544,26006.0,26005.0,0.16618877]
[1693533331736,0.03329637,26006.0,26005.0,0.16618877]
[1693533332135,0.08798544,26006.0,26005.0,0.16618877]
[1693533332335,0.25138544,26006.0,26005.0,0.16618877]
[1693533332633,0.19669637,26006.0,26005.0,0.16618877]
[1693533332839,0.25138544,26006.0,26005.0,0.16618877]
[1693533344546,0.48187963,26006.0,26005.0,0.16618877]
[1693533351651,0.25138544,26006.0,26005.0,0.16618877]
[1693533356353,0.08798544,26006.0,26005.0,0.16618877]
[1693533356553,0.24658544,26006.0,26005.0,0.16618877]
[1693533359859,0.47707963,26006.0,26005.0,0.16618877]
[1693533364263,0.47707963,26006.0,26005.0,0.005]
[1693533364264,0.53275879,26006.0,26005.0,0.005]
[1693533364469,0.9,26004.0,26000.0,0.00057686]
[1693533364770,0.23049034,26002.0,25997.0,0.1665]
[1693533364969,0.23049034,26002.0,25996.0,0.2381332]
[1693533364970,0.19192638,25999.0,25996.0,0.2381332]
[1693533365173,0.27991182,25998.0,25997.0,0.1538]
[1693533365359,0.19192638,25998.0,25997.0,0.1538]
[1693533365669,0.38739034,26001.0,25997.0,0.1538]
[1693533365670,0.19192638,25999.0,25997.0,0.1538]
[1693533366274,0.08798544,25998.0,25997.0,0.1538]
[1693533367071,0.12098544,25998.0,25997.0,0.1938]
[1693533368074,0.12098544,25998.0,25997.0,0.1568]
[1693533368371,0.12598544,25998.0,25997.0,0.1568]
[1693533373679,0.038,25998.0,25997.0,0.21334838]
[1693533373878,0.2023,25998.0,25997.0,0.21334838]
[1693533374778,0.29028544,25998.0,25997.0,0.1568]
[1693533376778,0.32037063,25998.0,25997.0,0.1568]
[1693533377989,0.28707426,25998.0,25997.0,0.1568]
[1693533378179,0.23238519,25998.0,25997.0,0.21334838]
[1693533378379,0.28707426,25998.0,25997.0,0.21334838]
[1693533378581,0.32037063,25998.0,25997.0,0.21334838]
[1693533379287,0.32037063,25998.0,25997.0,0.1568]
[1693533379882,0.28707426,25998.0,25997.0,0.21334838]
[1693533380384,0.32037063,25998.0,25997.0,0.1568]
[1693533385495,0.26568156,25998.0,25997.0,0.1568]
[1693533386096,0.32037063,25998.0,25997.0,0.1568]
[1693533390797,0.32037063,25998.0,25997.0,0.16065]
[1693533390999,0.32037063,25998.0,25997.0,0.1568]
[1693533393703,0.32037063,25998.0,25997.0,0.003]
[1693533396903,0.34037063,25998.0,25997.0,0.003]
[1693533397209,0.08798544,25997.0,25995.0,0.00057698]
[1693533397400,0.23238519,25998.0,25995.0,0.00057698]
[1693533397706,0.08798544,25997.0,25995.0,0.00057698]
[1693533397908,0.25238519,25998.0,25995.0,0.00057698]
[1693533398113,0.08798544,25997.0,25995.0,0.00057698]
[1693533398406,0.009,25997.0,25995.0,0.02157698]
[1693533398708,0.08798544,25996.0,25995.0,0.02157698]
[1693533399908,0.08798544,25996.0,25995.0,0.00857698]
[1693533400810,0.10798544,25996.0,25995.0,0.01057698]
[1693533401414,0.08798544,25996.0,25995.0,0.00857698]
[1693533401595,0.12498544,25996.0,25995.0,0.01157698]
[1693533402307,0.31691182,25996.0,25995.0,0.01157698]
[1693533402505,0.31691182,25996.0,25992.0,0.3116]
[1693533402811,0.23928544,25995.0,25992.0,0.3316]
[1693533403013,0.1513,25995.0,25992.0,0.3316]
[1693533403912,0.08798544,25994.0,25992.0,0.3376]
[1693533404103,0.1513,25995.0,25992.0,0.3376]
[1693533404295,0.1513,25995.0,25992.0,0.3316]
[1693533404500,0.08798544,25994.0,25992.0,0.3376]
[1693533404700,0.1723,25995.0,25992.0,0.3396]
[1693533405194,0.08798544,25994.0,25992.0,0.3396]
[1693533405500,0.1723,25995.0,25992.0,0.3396]
[1693533405899,0.08798544,25994.0,25992.0,0.3396]
[1693533406107,0.1723,25995.0,25992.0,0.3396]
[1693533406308,0.1723,25995.0,25992.0,0.3196]
[1693533406611,0.10898544,25994.0,25992.0,0.3396]
[1693533406810,0.021,25994.0,25992.0,0.39428907]
[1693533407109,0.08798544,25993.0,25992.0,0.3396]
[1693533407311,0.08798544,25993.0,25992.0,0.3376]
[1693533407509,0.08798544,25993.0,25992.0,0.3396]
[1693533408307,0.10898544,25993.0,25992.0,0.3396]
[1693533408710,0.10898544,25993.0,25992.0,0.3196]
[1693533419513,0.021,25993.0,25992.0,0.37614838]
[1693533420123,0.07568907,25993.0,25992.0,0.37614838]
[1693533420419,0.07568907,25993.0,25992.0,0.3196]
[1693533421216,0.10898544,25993.0,25992.0,0.3196]
[1693533424521,0.10898544,25993.0,25992.0,0.37614838]
[1693533427619,0.10898544,25993.0,25992.0,0.3196]
[1693533434418,0.12898544,25993.0,25992.0,0.3196]
[1693533434820,0.12898544,25993.0,25992.0,0.1624]
[1693533435320,0.10898544,25993.0,25992.0,0.1624]
[1693533438625,0.12898544,25993.0,25992.0,0.1624]
[1693533439029,0.10898544,25993.0,25992.0,0.1624]
[1693533439529,0.12898544,25993.0,25992.0,0.1624]
[1693533439924,0.10898544,25993.0,25992.0,0.1624]
[1693533445825,0.30091182,25993.0,25992.0,0.1624]
[1693533446224,0.10898544,25993.0,25992.0,0.1624]
[1693533446633,0.30091182,25993.0,25992.0,0.1624]
[1693533449232,0.10898544,25993.0,25992.0,0.1624]
[1693533452232,0.021,25993.0,25992.0,0.21894838]
[1693533452740,0.021,25993.0,25992.0,0.27363745]
[1693533452938,0.021,25993.0,25992.0,0.21894838]
[1693533453437,0.021,25993.0,25992.0,0.1624]
[1693533454141,0.10898544,25993.0,25992.0,0.1624]
[1693533460340,0.30076729,25993.0,25992.0,0.1624]
[1693533462947,0.10898544,25993.0,25992.0,0.1624]
[1693533463148,0.30076965,25993.0,25992.0,0.1624]
[1693533472169,0.10898544,25993.0,25992.0,0.1624]
[1693533481770,0.05429637,25993.0,25992.0,0.1624]
[1693533482073,0.021,25993.0,25992.0,0.1624]
[1693533482370,0.07568907,25993.0,25992.0,0.1624]
[1693533483369,0.021,25993.0,25992.0,0.1624]
[1693533483574,0.021,25993.0,25992.0,0.21894838]
[1693533483873,0.07568907,25993.0,25992.0,0.21894838]
[1693533484073,0.07568907,25993.0,25992.0,0.1624]
[1693533484473,0.021,25993.0,25992.0,0.1624]
[1693533485379,0.21284915,25993.0,25992.0,0.27363745]
[1693533485673,0.21284915,25993.0,25992.0,0.21894838]
[1693533485973,0.24614818,25993.0,25992.0,0.21894838]
[1693533486276,0.24614818,25993.0,25992.0,0.1624]
[1693533486575,0.10898544,25993.0,25992.0,0.1624]
[1693533486975,0.05429637,25993.0,25992.0,0.1624]
[1693533488477,0.10898544,25993.0,25992.0,0.1624]
[1693533493483,0.05429637,25993.0,25992.0,0.1624]
[1693533493783,0.10898544,25993.0,25992.0,0.1624]
[1693533495878,0.27468544,25993.0,25992.0,0.1624]
[1693533501782,0.24138907,25993.0,25992.0,0.1624]
[1693533502179,0.1867,25993.0,25992.0,0.21894838]
[1693533503187,0.21999637,25993.0,25992.0,0.21894838]
[1693533503484,0.27468544,25993.0,25992.0,0.1624]
[1693533505987,0.1867,25993.0,25992.0,0.21708907]
[1693533506174,0.1867,25993.0,25992.0,0.27363745]
[1693533506377,0.021,25993.0,25992.0,0.27363745]
[1693533509493,0.21278997,25993.0,25992.0,0.27363745]
[1693533510995,0.21278997,25993.0,25992.0,0.35061435]
[1693533517492,0.21278997,25993.0,25992.0,0.27363745]
[1693533524488,0.021,25993.0,25992.0,0.27363745]
[1693533532507,0.21282128,25993.0,25992.0,0.27363745]
[1693533533106,0.021,25993.0,25992.0,0.27363745]
[1693533533417,0.21282531,25993.0,25992.0,0.27363745]
[1693533538615,0.21282531,25993.0,25992.0,0.27284398]
[1693533539709,0.021,25993.0,25992.0,0.27284398]
[1693533546620,0.1778,25993.0,25992.0,0.27284398]
[1693533547419,0.1778,25993.0,25992.0,0.21815491]
[1693533548519,0.1778,25993.0,25992.0,0.27284398]
[1693533607367,0.1778,25993.0,25992.0,0.21815491]
[1693533607560,0.1778,25993.0,25992.0,0.008]
[1693533608068,0.26578544,25993.0,25992.0,0.008]
[1693533611571,0.26578544,25993.0,25992.0,0.01327437]
[1693533614575,0.1778,25993.0,25992.0,0.01327437]
[1693533615168,0.1778,25993.0,25992.0,0.06982275]
[1693533616275,0.1778,25993.0,25992.0,0.22262275]
[1693533617371,0.1778,25993.0,25992.0,0.27731182]
[1693533617864,0.1778,25993.0,25992.0,0.22262275]
[1693533619278,0.21109637,25993.0,25992.0,0.16607437]
[1693533620582,0.26578544,25993.0,25992.0,0.16607437]
[1693533621780,0.21109637,25993.0,25992.0,0.16607437]
[1693533623784,0.1778,25993.0,25992.0,0.27731182]
[1693533627177,0.1778,25993.0,25992.0,0.22262275]
[1693533627584,0.1778,25993.0,25992.0,0.27731182]
[1693533628985,0.36973206,25993.0,25992.0,0.27731182]
[1693533629186,0.21293206,25993.0,25992.0,0.35428872]
[1693533629385,0.021,25993.0,25992.0,0.41277717]
[1693533630084,0.021,25993.0,25992.0,0.37426684]
[1693533633989,0.22269264,25995.0,25993.0,0.11123745]
[1693533634191,0.22269264,25995.0,25992.0,0.26302939]
[1693533634488,0.22269264,25995.0,25993.0,0.11123745]
[1693533634689,0.22269264,25995.0,25994.0,0.00527437]
[1693533635187,0.24469264,25995.0,25994.0,0.00527437]
[1693533635578,0.24469264,25995.0,25994.0,0.11651182]
[1693533636087,0.26469264,25995.0,25994.0,0.11851182]
[1693533636982,0.24269264,25995.0,25994.0,0.11851182]
[1693533637193,0.07176058,25995.0,25994.0,0.12151182]
[1693533638394,0.22201725,25998.0,25994.0,0.21846684]
[1693533638590,0.19193206,25999.0,25996.0,0.00527437]
[1693533638894,0.21193206,25999.0,25998.0,0.00385]
[1693533639289,0.21193206,25999.0,25998.0,0.11123745]
[1693533639684,0.21193206,25999.0,25998.0,0.11651182]
[1693533640082,0.02,25999.0,25998.0,0.11651182]
[1693533640282,0.00057698,26000.0,25998.0,0.11651182]
[1693533640484,0.00057698,26000.0,25999.0,0.28068745]
[1693533640792,0.00057698,26000.0,25999.0,0.30211182]
[1693533641090,0.03117026,26000.0,25999.0,0.30211182]
[1693533641284,0.00057698,26000.0,25999.0,0.30211182]
[1693533641489,0.00057698,26000.0,25999.0,0.30596182]
[1693533641687,0.00057698,26000.0,25999.0,0.28211182]
[1693533641893,0.00057698,26000.0,25999.0,0.30596182]
[1693533642092,0.00257698,26000.0,25999.0,0.30511182]
[1693533642292,0.02657698,26000.0,25999.0,0.30711182]
[1693533643195,0.02657698,26000.0,25999.0,0.28711182]
[1693533643393,0.02657698,26000.0,25999.0,0.31096182]
[1693533643890,0.02657698,26000.0,25999.0,0.30711182]
[1693533644389,0.02657698,26000.0,25999.0,0.29096182]
[1693533644593,0.02657698,26000.0,25999.0,0.28711182]
[1693533645496,0.02657698,26000.0,25999.0,0.29096182]
[1693533645794,0.02657698,26000.0,25999.0,0.28711182]
[1693533645982,0.02657698,26000.0,25999.0,0.29096182]
[1693533646191,0.02657698,26000.0,25999.0,0.28711182]
[1693533646590,0.02657698,26000.0,25999.0,0.29096182]
[1693533646789,0.02657698,26000.0,25999.0,0.28711182]
[1693533650096,0.02657698,26000.0,25999.0,0.29096182]
[1693533650603,0.02657698,26000.0,25999.0,0.28711182]
[1693533653403,0.03155394,26002.0,25999.0,0.86702296]
[1693533653605,0.7974,26004.0,26000.0,0.11123745]
[1693533653802,0.02,26004.0,26002.0,0.00527437]
[1693533654011,0.02,26004.0,26003.0,0.11508745]
[1693533654199,0.07468907,26004.0,26003.0,0.20824838]
[1693533654505,0.05329637,26004.0,26003.0,0.1517]
[1693533654706,0.05329637,26004.0,26003.0,0.15697437]
[1693533654905,0.02,26004.0,26003.0,0.15697437]
[1693533655505,0.022,26004.0,26003.0,0.26821182]
[1693533655804,0.02,26004.0,26003.0,0.21352275]
[1693533656006,0.022,26004.0,26003.0,0.21952275]
[1693533656401,0.022,26004.0,26003.0,0.27421182]
[1693533656600,0.022,26004.0,26003.0,0.21952275]
[1693533656806,0.022,26004.0,26003.0,0.27421182]
[1693533657310,0.022,26004.0,26003.0,0.21952275]
[1693533657609,0.10712982,26004.0,26003.0,0.21952275]
[1693533658004,0.05244075,26004.0,26003.0,0.21952275]
[1693533658306,0.05244075,26004.0,26003.0,0.27421182]
[1693533658708,0.05244075,26004.0,26003.0,0.21952275]
[1693533658912,0.05244075,26004.0,26003.0,0.27421182]
[1693533661304,0.05244075,26004.0,26003.0,0.06782275]
[1693533661506,0.27766918,26004.0,26003.0,0.01127437]
[1693533661700,0.27766918,26004.0,25999.0,0.1555]
[1693533662007,0.27712692,26004.0,25995.0,0.3]
[1693533662211,0.27712692,26004.0,25996.0,0.1555]
[1693533662711,0.27712692,26004.0,25996.0,0.1755]
[1693533662907,0.19193206,26003.0,25999.0,0.003]
[1693533663212,0.08798544,26002.0,25999.0,0.004]
[1693533663405,0.1711,26002.0,25999.0,0.004]
[1693533663807,0.08798544,26001.0,25999.0,0.004]
[1693533664012,0.03329637,26001.0,25999.0,0.004]
[1693533664311,0.05468907,26000.0,25999.0,0.004]
[1693533664504,0.05468907,26000.0,25999.0,0.06054838]
[1693533664704,0.03329637,26001.0,25999.0,0.06054838]
[1693533664905,0.10798544,26001.0,25999.0,0.06054838]
[1693533665110,0.05329637,26001.0,25999.0,0.05654838]
[1693533665604,0.05968907,26000.0,25999.0,0.05754838]
[1693533665907,0.005,26000.0,25999.0,0.11223745]
[1693533666114,0.003,26001.0,25999.0,0.11423745]
[1693533666411,0.08268907,26001.0,26000.0,0.05654838]
[1693533666803,0.05468907,26001.0,26000.0,0.05654838]
[1693533667014,0.08798544,26001.0,25999.0,0.004]
[1693533667217,0.1511,26002.0,25999.0,0.004]
[1693533667405,0.05468907,26001.0,25999.0,0.004]
[1693533667712,0.1711,26002.0,25999.0,0.004]
[1693533667915,0.05468907,26001.0,25999.0,0.004]
[1693533668113,0.03329637,26001.0,25999.0,0.004]
[1693533668314,0.03329637,26001.0,25999.0,0.003]
[1693533668612,0.05468907,26000.0,25999.0,0.001]
[1693533668807,0.008,26001.0,25999.0,0.11223745]
[1693533669010,0.008,26001.0,25999.0,0.001]
[1693533669315,0.008,26001.0,26000.0,0.11123745]
[1693533671011,0.008,26001.0,26000.0,0.05654838]
[1693533671613,0.008,26001.0,26000.0,0.11123745]
[1693533671808,0.004,26001.0,26000.0,0.11323745]
[1693533672015,0.007,26001.0,26000.0,0.11623745]
[1693533672715,0.007,26001.0,26000.0,0.06154838]
[1693533673322,0.007,26001.0,26000.0,0.11623745]
[1693533676015,0.008,26001.0,26000.0,0.11523745]
[1693533678018,0.008,26001.0,26000.0,0.13523745]
[1693533679116,0.03044075,26004.0,26000.0,0.71212474]
[1693533679324,0.35203206,26007.0,26001.0,0.18819247]
[1693533679531,0.35203206,26007.0,26001.0,0.09695502]
[1693533679727,0.19193206,26007.0,26006.0,0.00385]
[1693533680031,0.19193206,26007.0,26006.0,0.11508745]
[1693533681621,0.22522843,26007.0,26006.0,0.00685]
[1693533681817,0.22522843,26007.0,26006.0,0.00885]
[1693533682215,0.08798544,26007.0,26006.0,0.005]
[1693533682417,0.10798544,26007.0,26006.0,0.005]
[1693533683127,0.33810548,26007.0,26006.0,0.005]
[1693533689332,0.10798544,26007.0,26006.0,0.005]
[1693533689933,0.08798544,26007.0,26006.0,0.005]
[1693533690745,0.14650216,26007.0,26006.0,0.005]
[1693533691737,0.08798544,26007.0,26006.0,0.005]
[1693533693638,0.03329637,26007.0,26006.0,0.005]
[1693533693937,0.08798544,26007.0,26006.0,0.005]
[1693533705562,0.31810548,26007.0,26006.0,0.005]
[1693533707464,0.33810548,26007.0,26005.0,0.00385]
[1693533707666,0.25012004,26007.0,26005.0,0.00385]
[1693533707967,0.08798544,26006.0,26005.0,0.00385]
[1693533708169,0.10798544,26006.0,26005.0,0.00385]
[1693533708667,0.10798544,26006.0,26005.0,0.00685]
[1693533708858,0.10798544,26006.0,26005.0,0.00785]
[1693533709563,0.09098544,26006.0,26005.0,0.00785]
[1693533710272,0.34110548,26006.0,26005.0,0.00785]
[1693533710460,0.32310548,26006.0,26005.0,0.00785]
[1693533712463,0.09298544,26006.0,26005.0,0.00785]
[1693533716275,0.32310548,26006.0,26005.0,0.00785]
[1693533718574,0.09298544,26006.0,26005.0,0.00785]
[1693533720979,0.14966394,26006.0,26005.0,0.00785]
[1693533722082,0.14966394,26006.0,26005.0,0.06439838]
[1693533722083,0.38000039,26006.0,26005.0,0.06439838]
[1693533722383,0.32531132,26006.0,26005.0,0.00785]
[1693533722979,0.38000039,26006.0,26005.0,0.00785]
[1693533727385,0.14966394,26006.0,26005.0,0.00785]
[1693533728791,0.09497487,26006.0,26005.0,0.00785]
[1693533729191,0.14966394,26006.0,26005.0,0.00785]
[1693533734493,0.38000039,26006.0,26005.0,0.00785]
[1693533736099,0.26863282,26006.0,26005.0,0.00785]
[1693533736399,0.23533645,26006.0,26005.0,0.00785]
[1693533736601,0.26863282,26006.0,26005.0,0.00785]
[1693533736798,0.26863282,26006.0,26005.0,0.06253907]
[1693533737191,0.26863282,26006.0,26005.0,0.22243907]
[1693533737992,0.23533645,26006.0,26005.0,0.27898745]
[1693533738190,0.005,26006.0,26005.0,0.27898745]
[1693533742602,0.19702207,26006.0,26005.0,0.27898745]
[1693533746299,0.005,26006.0,26005.0,0.29898745]
[1693533748999,0.005,26006.0,26005.0,0.27898745]
[1693533749198,0.005,26006.0,26005.0,0.29898745]
[1693533749599,0.19702207,26006.0,26005.0,0.27898745]
[1693533749894,0.19702207,26006.0,26005.0,0.29898745]
[1693533750110,0.23031844,26006.0,26005.0,0.16775]
[1693533751698,0.19702207,26006.0,26005.0,0.27898745]
[1693533752103,0.23033645,26012.0,26011.0,0.00384]
[1693533752304,0.23033645,26013.0,26012.0,0.00384]
[1693533752514,0.02,26013.0,26012.0,0.00384]
[1693533752815,0.10798544,26013.0,26012.0,0.00384]
[1693533753311,0.05329637,26013.0,26012.0,0.00384]
[1693533753513,0.10798544,26013.0,26012.0,0.00384]
[1693533753708,0.10798544,26013.0,26012.0,0.15974]
[1693533753899,0.08415094,26013.0,26012.0,0.21442907]
[1693533754099,0.08415094,26013.0,26012.0,0.15974]
[1693533754710,0.08415094,26013.0,26012.0,0.16274]
[1693533754909,0.08415094,26013.0,26012.0,0.16574]
[1693533756211,0.05085457,26013.0,26012.0,0.16574]
[1693533756416,0.05085457,26013.0,26012.0,0.16274]
[1693533756615,0.05085457,26013.0,26012.0,0.16574]
[1693533756911,0.03085457,26013.0,26012.0,0.27697745]
[1693533757112,0.1564,26016.0,26013.0,0.00384]
[1693533757307,0.1764,26016.0,26013.0,0.00384]
[1693533757513,0.1764,26016.0,26014.0,0.11123745]
[1693533757707,0.1764,26016.0,26013.0,0.00384]
[1693533757915,0.1764,26016.0,26014.0,0.00384]
[1693533758413,0.1764,26016.0,26015.0,0.1595]
[1693533758614,0.20657593,26016.0,26015.0,0.1595]
[1693533758814,0.2398723,26016.0,26015.0,0.1595]
[1693533760415,0.29456137,26016.0,26014.0,0.006]
[1693533760616,0.20657593,26016.0,26014.0,0.006]
[1693533760812,0.26350562,26016.0,26015.0,0.003]
[1693533761216,0.26350562,26016.0,26015.0,0.006]
[1693533761416,0.35149106,26016.0,26015.0,0.006]
[1693533761916,0.33149106,26016.0,26015.0,0.006]
[1693533762113,0.35149106,26016.0,26015.0,0.006]
[1693533763813,0.33149106,26016.0,26015.0,0.006]
[1693533765211,0.35149106,26016.0,26015.0,0.006]
[1693533765411,0.33149106,26016.0,26015.0,0.006]
[1693533765622,0.35149106,26016.0,26015.0,0.006]
[1693533765917,0.33149106,26016.0,26015.0,0.006]
[1693533771817,0.24350562,26016.0,26015.0,0.006]
[1693533772322,0.43505906,26016.0,26015.0,0.1689]
[1693533772521,0.24350562,26016.0,26015.0,0.28013745]
[1693533773823,0.24350562,26016.0,26015.0,0.22928838]
[1693533774526,0.24350562,26016.0,26015.0,0.28397745]
[1693533774723,0.27680199,26016.0,26015.0,0.22928838]
[1693533774931,0.27680199,26016.0,26015.0,0.17274]
[1693533775130,0.27680199,26016.0,26015.0,0.22742907]
[1693533775730,0.27680199,26016.0,26015.0,0.17274]
[1693533776119,0.27680199,26016.0,26015.0,0.22742907]
[1693533776325,0.24350562,26016.0,26015.0,0.28397745]
[1693533776524,0.24350562,26016.0,26015.0,0.17274]
[1693533776525,0.27680199,26016.0,26015.0,0.17274]
[1693533776932,0.24350562,26016.0,26015.0,0.22742907]
[1693533777432,0.27680199,26016.0,26015.0,0.17274]
[1693533779631,0.27680199,26016.0,26015.0,0.28397745]
[1693533780128,0.24350562,26016.0,26015.0,0.22928838]
[1693533780736,0.24350562,26016.0,26015.0,0.17274]
[1693533781231,0.27680199,26016.0,26015.0,0.17274]
[1693533784236,0.24350562,26016.0,26015.0,0.22928838]
[1693533784729,0.24350562,26016.0,26015.0,0.28397745]
[1693533785237,0.08710562,26016.0,26015.0,0.28397745]
[1693533785431,0.23033645,26018.0,26017.0,0.00384]
[1693533785432,0.39173645,26018.0,26017.0,0.00384]
[1693533785835,0.42270904,26018.0,26017.0,0.00384]
[1693533786039,0.42270904,26018.0,26017.0,0.05852907]
[1693533786537,0.42270904,26018.0,26017.0,0.06152907]
[1693533786838,0.42270904,26018.0,26017.0,0.00684]
[1693533787337,0.42270904,26018.0,26017.0,0.06638838]
[1693533787529,0.42270904,26018.0,26017.0,0.12107745]
[1693533787730,0.19237259,26018.0,26017.0,0.12107745]
[1693533792252,0.19237259,26018.0,26017.0,0.14107745]
[1693533794748,0.42251888,26018.0,26017.0,0.14107745]
[1693533794940,0.26111888,26018.0,26017.0,0.14107745]
[1693533796953,0.11992864,26018.0,26017.0,0.02984]
[1693533797651,0.11992864,26018.0,26017.0,0.08452907]
[1693533798547,0.08663227,26018.0,26017.0,0.08452907]
[1693533798939,0.08663227,26018.0,26017.0,0.14107745]
[1693533799445,0.35513628,26018.0,26017.0,0.14107745]
[1693533799746,0.08663227,26018.0,26017.0,0.14107745]
[1693533799950,0.03097259,26018.0,26017.0,0.14107745]
[1693533800246,0.32745861,26019.0,26018.0,0.00384]
[1693533800441,0.26850401,26019.0,26018.0,0.11507745]
[1693533800639,0.26850401,26019.0,26018.0,0.26737745]
[1693533800838,0.32415951,26019.0,26018.0,0.26737745]
[1693533801640,0.32455065,26019.0,26018.0,0.26737745]
[1693533801842,0.32455065,26019.0,26018.0,0.27337745]
[1693533802445,0.0556555,26019.0,26018.0,0.27337745]
[1693533802647,0.32454254,26019.0,26018.0,0.27337745]
[1693533802948,0.0556555,26019.0,26018.0,0.27337745]
[1693533803750,0.23045514,26019.0,26018.0,0.27337745]
[1693533807054,0.48242851,26020.0,26019.0,0.00384]
[1693533807245,0.48242851,26020.0,26019.0,0.11507745]
[1693533807446,0.31942851,26020.0,26019.0,0.11507745]
[1693533807758,0.31942851,26020.0,26019.0,0.06038838]
[1693533807946,0.31942851,26020.0,26019.0,0.11507745]
[1693533808348,0.31942851,26020.0,26019.0,0.11807745]
[1693533808547,0.31942851,26020.0,26019.0,0.12107745]
[1693533808748,0.31942851,26020.0,26019.0,0.06638838]
[1693533809143,0.31942851,26020.0,26019.0,0.12107745]
[1693533809457,0.26105325,26020.0,26019.0,0.12107745]
[1693533809853,0.08625154,26020.0,26019.0,0.12107745]
[1693533810155,0.03059811,26020.0,26019.0,0.12107745]